Cogmind - Beta 13 @@@ ROGUE MODE // 2024.06.11 @ 13:40:22 Player: SovietPaperclip Result: Destroyed by D-53 Grenadier with Mini Grenade Launcher Performance ------------- Evolutions (0) 0 Regions Visited (4) 800 Robots Destroyed (16) 80 Value Destroyed (259) 259 Prototype IDs (0) 0 Alien Tech Used (0) 0 Bonus (76) 76 TOTAL SCORE: 1215 Bonus ------- Follower Combat Kills 191 Friendly Fire -115 Cogmind --------- Core Integrity 0/250 Matter 203/300 Energy 127/170 System Corruption 6% Temperature Cool (0) Movement Core (550) Ox10 Location -9/Mines Parts ------- > --- POWER (1) -------- Makeshift Power Source > --- PROPULSION (2) --- (None) > --- UTILITY (2) ------ Improved Heat Sink Large Storage Unit > --- WEAPON (2) ------- Beamcaster Grenade Launcher > --- INVENTORY (15) --- Ion Engine Light Treads Carbon-fiber Leg Wheel Humpback Large Matter Pod (150) Signal Interpreter Assault Rifle Light Assault Rifle Peak State ------------ > --- POWER ------------ Light Angular Momentum Engine > --- PROPULSION ------- Carbon-fiber Leg Makeshift Leg > --- UTILITY ---------- Improved Heat Sink Large Storage Unit > --- WEAPON ----------- Assault Rifle Rocket Launcher > --- INVENTORY -------- Ion Engine Makeshift Power Source Light Treads Carbon-fiber Leg Wheel Improved Heat Sink Humpback Large Matter Pod Signal Interpreter Beamcaster Light Assault Rifle Grenade Launcher [Rating: 21] Favorites ----------- Power Light Angular Momentum Engine Engine Light Angular Momentum Engine Propulsion Carbon-fiber Leg Treads Light Treads Leg Carbon-fiber Leg Utility Large Storage Unit Device Improved Heat Sink Storage Large Storage Unit Protection Light Armor Plating Weapon Assault Rifle Energy Gun EM Pulse Gun Ballistic Gun Assault Rifle Launcher Grenade Launcher Build | -11 -10 -10 -10 -9 ------- Run | Yrd Mat Min Exi Min Slots Evolved . | . . . . . Power . | . . . . . Propulsion . | . . . . . Utility . | . . . . . Weapon . | . . . . . Parts Attached 20 | 6 5 4 . 5 Power 4 | 1 1 1 . 1 Engine 4 | 1 1 1 . 1 Core . | . . . . . Reactor . | . . . . . Propulsion 5 | 2 . 3 . . Treads 2 | 2 . . . . Leg 3 | . . 3 . . Wheel . | . . . . . Hover . | . . . . . Flight . | . . . . . Utility 5 | 1 3 . . 1 Device 2 | . 1 . . 1 Storage 2 | 1 1 . . . Processor . | . . . . . Hackware . | . . . . . Protection 1 | . 1 . . . Artifact . | . . . . . Weapon 6 | 2 1 . . 3 Energy Gun 2 | 1 . . . 1 Energy Cannon . | . . . . . Ballistic Gun 2 | 1 1 . . . Ballistic Cannon . | . . . . . Launcher 2 | . . . . 2 Special Weapon . | . . . . . Impact Weapon . | . . . . . Slashing Weapon . | . . . . . Piercing Weapon . | . . . . . Special Melee Weapon . | . . . . . Unidentified Prototypes . | . . . . . Parts Lost 6 | . 1 . . 5 Power 1 | . . . . 1 Propulsion 2 | . . . . 2 Utility 2 | . 1 . . 1 Weapon 1 | . . . . 1 Highest Loss Streak 3 | . 1 . . 3 To Critical Strikes . | . . . . . Average Slot Usage (%) 98 | . 92 100 100 100 Engine 14 | . 14 14 14 14 Treads 7 | . 28 6 . . Leg 20 | . . 21 28 28 Device 11 | . . 14 14 14 Storage 14 | . 14 14 14 14 Protection 1 | . 6 . . . Ballistic Gun 26 | . 22 28 28 20 Launcher 1 | . . . . 7 Naked Turns . | . . . . . Heaviest Build 37 | 14 29 33 33 37 Greatest Support 40 | 40 40 40 35 35 Greatest Overweight (x) 1 | . . . . 1 Average Overweight (x) . | . . . . . Largest Inventory Capacity 15 | 8 15 15 15 15 Average Capacity 14 | 7 10 15 15 15 Most Carried 14 | 2 8 11 13 14 Average Carried 8 | 1 3 9 10 12 Final Capacity 15 | 8 15 15 15 15 Final Carried 13 | 2 6 10 13 10 Class Distribution -------------------- 72% | Scavenger-Mutant 27% | Mutant Dominant Class ---------------- Mutant | -10/Materials Scavenger-Mutant | -10/Mines Scavenger-Mutant | -10/Exiles Scavenger-Mutant | -9/Mines Resources | -11 -10 -10 -10 -9 ----------- Run | Yrd Mat Min Exi Min Matter Collected 498 | 141 203 142 . 12 Remotely . | . . . . . Salvage Created 570 | . 230 172 . 168 Parts 36 | . 18 10 . 8 Haulers Intercepted 1 | . 1 . . . Recyclers Shooed . | . . . . . Parts Field Recycled . | . . . . . Retrieved Matter . | . . . . . Parts Self-Destructed . | . . . . . Prevented . | . . . . . Kills | -11 -10 -10 -10 -9 ------- Run | Yrd Mat Min Exi Min Combat Hostiles Destroyed 15 | . 6 3 . 6 Guns 11 | . 6 3 . 2 AOE 4 | . . . . 4 Classes Destroyed 6 | . 4 1 . 1 Hauler 1 | . 1 . . . Recycler 2 | . . 1 . 1 Mechanic 1 | . 1 . . . Swarmer 7 | . 4 3 . . Grunt 4 | . 2 . . 2 Assembled 4 | . . . . 4 Thug 1 | . . 1 . . Best Kill Streak 5 | . 3 3 . 5 Combat Bots Only 4 | . 3 3 . 4 Max Kills in Single Turn 2 | . 1 2 . 1 Gunslinging . | . . . . . Exploded 1 | . . . . 1 Melee . | . . . . . Uniques/NPCs Destroyed . | . . . . . Combat | -11 -10 -10 -10 -9 -------- Run | Yrd Mat Min Exi Min Hostile Shots Fired 77 | . 46 17 . 14 Missed 17 | . 10 4 . 3 Damage Taken 1147 | . 401 120 . 626 Core 252 | . 44 17 . 191 Absorbed by Shields . | . . . . . Core Remaining (%) 100 | 100 . . . . Volleys Fired 48 | . 27 12 . 9 Largest 2 | . 2 2 . 2 Hottest 63 | . 60 40 . 63 Shots Fired 91 | . 54 24 . 13 Gun 84 | . 54 24 . 6 Cannon . | . . . . . Launcher 7 | . . . . 7 Special . | . . . . . Kinetic 69 | . 39 24 . 6 Thermal . | . . . . . Explosive 7 | . . . . 7 Electromagnetic 15 | . 15 . . . Robot Hit Streak 11 | . 5 4 . 11 Robot Miss Streak 5 | . 5 3 . 1 Penetration Max . | . . . . . Secondary Targets 1 | . . . . 1 Max Gunslinging Chain 1 | . . . . 1 Shots Hit Robots 49 | . 27 12 . 10 Core Hits 31 | . 12 7 . 12 Critical Kills . | . . . . . Critical Parts Destroyed . | . . . . . Critical Strikes . | . . . . . Melee Attacks . | . . . . . Impact . | . . . . . Slashing . | . . . . . Piercing . | . . . . . Sneak Attacks . | . . . . . Combat Hostiles . | . . . . . Follow-up Attacks . | . . . . . Damage Inflicted 935 | . 336 136 . 463 Guns 529 | . 336 136 . 57 Cannons . | . . . . . Explosions 406 | . . . . 406 Melee . | . . . . . Ramming . | . . . . . Kinetic 472 | . 279 136 . 57 Thermal . | . . . . . Explosive 406 | . . . . 406 Electromagnetic 57 | . 57 . . . Impact . | . . . . . Slashing . | . . . . . Piercing . | . . . . . Highest Corruption 6 | . . . . 6 Average Corruption 5 | . . . . 5 Corruption Purged . | . . . . . Corruption Blocked . | . . . . . Effects 2 | . . . . 2 Energy Discharges 1 | . . . . 1 Alerts 1 | . . . . 1 Overload Shots . | . . . . . Overflow Damage 15 | . . . . 15 Projectiles . | . . . . . Explosions 15 | . . . . 15 Melee . | . . . . . Knockbacks . | . . . . . Impact . | . . . . . Kinetic . | . . . . . Secondary . | . . . . . Self-Inflicted Damage 92 | . . . . 92 Shots 3 | . . . . 3 Rammed . | . . . . . Targets Rammed . | . . . . . Kicked . | . . . . . Crushed . | . . . . . Highest Temperature 216 | . 216 . . . Average Temperature 79 | . 79 . . . Received Heat Transfer 174 | . 159 9 . 6 Siege Activations . | . . . . . Robots Corrupted . | . . . . . Combat Hostiles . | . . . . . Parts Fried 2 | . . 2 . . Impact Corruptions . | . . . . . Robots Melted . | . . . . . Combat Hostiles . | . . . . . Parts Melted . | . . . . . Heat Transferred . | . . . . . Parts Sabotaged . | . . . . . Parts Stolen . | . . . . . Parts Stripped . | . . . . . Power Chain Reactions . | . . . . . Alert | -11 -10 -10 -10 -9 ------- Run | Yrd Mat Min Exi Min Peak Influence 222 | . 180 222 . 62 Initial 70 | . . 70 . . Average 104 | . 105 136 . 33 Maximum Alert Level 1 | . . 1 . . Low Security (%) 86 | 100 100 75 . 100 Level 1 13 | . . 24 . . Level 2 . | . . . . . Level 3 . | . . . . . Level 4 . | . . . . . Level 5 . | . . . . . High Security . | . . . . . Max Security . | . . . . . Squads Dispatched . | . . . . . Investigation . | . . . . . Extermination . | . . . . . Reinforcement . | . . . . . Assault . | . . . . . Garrison . | . . . . . Intercept . | . . . . . Searches Triggered . | . . . . . Construction Impeded . | . . . . . Haulers Reinforced . | . . . . . Active Scanning Responses . | . . . . . Cargo Convoy Interrupts . | . . . . . Stealth | -11 -10 -10 -10 -9 --------- Run | Yrd Mat Min Exi Min Distress Signals . | . . . . . Communications Jammed . | . . . . . Distress Signals . | . . . . . Times Spotted 25 | . 10 7 . 8 Peak Tracking Total 3 | . 3 2 . 3 Tactical Retreats 1 | . 1 . . . Traps | -11 -10 -10 -10 -9 ------- Run | Yrd Mat Min Exi Min Traps Triggered . | . . . . . Indirectly . | . . . . . Trap Hack Attempts . | . . . . . Triggered . | . . . . . Disarmed . | . . . . . Reprogrammed . | . . . . . Reused . | . . . . . Traps Extracted . | . . . . . Installed . | . . . . . Triggered 2 | . . 2 . . Machines | -11 -10 -10 -10 -9 ---------- Run | Yrd Mat Min Exi Min Machines Disabled . | . . . . . Max in Single Turn . | . . . . . Machines Repaired . | . . . . . Machines Dismantled . | . . . . . Machines Sabotaged . | . . . . . Overloaded Fab Kills . | . . . . . Hacking | -11 -10 -10 -10 -9 --------- Run | Yrd Mat Min Exi Min Machines Accessed 3 | . 2 . 1 . Terminals 2 | . 2 . . . Fabricators . | . . . . . Repair Stations . | . . . . . Recycling Units . | . . . . . Scanalyzers . | . . . . . Garrison Access . | . . . . . Total Hacks 4 | . 3 . 1 . Successful 3 | . 2 . 1 . Failed 1 | . 1 . . . Catastrophic 1 | . 1 . . . Database Lockouts . | . . . . . Manual 1 | . 1 . . . Terminals 3 | . 3 . . . Fabricators . | . . . . . Repair Stations . | . . . . . Recycling Units . | . . . . . Scanalyzers . | . . . . . Garrison Access . | . . . . . Terminal Hacks 3 | . 2 . 1 . Record 2 | . 1 . 1 . Part Schematic 1 | . 1 . . . Fabricator Hacks . | . . . . . Repair Station Hacks . | . . . . . Recycling Unit Hacks . | . . . . . Scanalyzer . | . . . . . Garrison Access Hacks . | . . . . . Unauthorized Hacks . | . . . . . Terminals . | . . . . . Fabricators . | . . . . . Repair Stations . | . . . . . Recycling Units . | . . . . . Scanalyzers . | . . . . . Garrison Access . | . . . . . Data Cores Recovered . | . . . . . Used . | . . . . . Hacking Detections 1 | . 1 . . . Full Trace Events . | . . . . . Feedback Events . | . . . . . Feedback Blocked . | . . . . . Robot Schematics Acquired . | . . . . . Robots Built . | . . . . . Authchips . | . . . . . Time . | . . . . . Total Robot Build Rating . | . . . . . Part Schematics Acquired 1 | . 1 . . . Parts Built . | . . . . . Authchips . | . . . . . Time . | . . . . . Total Part Build Rating . | . . . . . Parts Repaired . | . . . . . Time . | . . . . . Parts Recycled . | . . . . . Recycled Matter . | . . . . . Retrieved Matter . | . . . . . Retrieved Components . | . . . . . Parts Scanalyzed . | . . . . . Part Schematics Acquired . | . . . . . Parts Damaged . | . . . . . Bothacking | -11 -10 -10 -10 -9 ------------ Run | Yrd Mat Min Exi Min Used RIF Installer . | . . . . . Robots Hacked . | . . . . . Non-combat . | . . . . . Combat . | . . . . . Robot Hacks Applied . | . . . . . Relay Couplers Released . | . . . . . Fabnet Peak Effective % . | . . . . . Robots Rewired . | . . . . . Allies Hacked . | . . . . . Hacks Repelled . | . . . . . Allies | -11 -10 -10 -10 -9 -------- Run | Yrd Mat Min Exi Min Total Allies 5 | . . 5 . . Largest Group 4 | . . 4 2 2 Highest-Rated Group 71 | . . 71 32 32 Highest-Rated Ally 31 | . . 31 16 16 Total Orders . | . . . . . Ally Attacks 42 | . . 37 . 5 Total Damage 442 | . . 392 . 50 Kills 9 | . . 8 . 1 Allies Corrupted . | . . . . . Allies Melted . | . . . . . Intel | -11 -10 -10 -10 -9 ------- Run | Yrd Mat Min Exi Min Robot Analysis Total . | . . . . . Derelict Logs Recovered 2 | . . 2 . . Drone Launches . | . . . . . Drone Recoveries . | . . . . . Exploration | -11 -10 -10 -10 -9 ------------- Run | Yrd Mat Min Exi Min Turns Passed 2003 | 67 313 831 520 272 Spaces Moved 1306 | 38 127 566 399 176 Core 3 | 3 . . . . Treads 267 | 35 127 105 . . Legs 1036 | . . 461 399 176 Wheels . | . . . . . Hover . | . . . . . Flight . | . . . . . Fastest Speed 50 | 50 160 130 130 130 Average Speed 136 | 151 160 135 130 133 Slowest Speed 200 | 160 160 160 130 200 Overloaded Moves . | . . . . . Propulsion Burnouts . | . . . . . Robots Hopped . | . . . . . Cave-ins Triggered 1 | . . . . 1 Exploration Rate (%) 55 | 4 36 94 89 52 Regions Visited 4 Branch Regions 3 Pre-discovered Areas 1 | . . . . 1 Known Exits Taken . | . . . . . Unknown Exits Taken 4 | 1 1 1 1 . Scrap Searched 2 | . . 1 . 1 Spaces Dug 12 | . . . . 12 Terrain Destroyed 61 | . . . . 61 Melee . | . . . . . Projectile . | . . . . . AOE 61 | . . . . 61 Terrain Rammed . | . . . . . Walls Destroyed . | . . . . . Machines Disabled . | . . . . . Actions | -11 -10 -10 -10 -9 --------- Run | Yrd Mat Min Exi Min Total 1440 | 45 185 609 400 201 Wait 42 | . 17 16 . 9 Move 1302 | 37 126 565 398 176 Hop . | . . . . . Pick Up 20 | 2 7 8 2 1 Fast Attach 7 | 6 1 . . . Attach 7 | . 2 2 . 3 Detach . | . . . . . Swap 6 | . 2 2 . 2 Drop 8 | . 3 4 . 1 Fire 48 | . 27 12 . 9 Melee . | . . . . . Ram . | . . . . . Kick . | . . . . . Crush . | . . . . . Escape Stasis . | . . . . . Rewire . | . . . . . Trap . | . . . . . Miscellaneous . | . . . . . Route ------- -11/Scrapyard -10/Materials -10/Mines (discovered 3 exits: *Mat x2 / *Exi) -10/Exiles -9/Mines History --------- Turn | Location | Event 17 | -11/Scrapyard | Discovered new exit (range 16) 68 | -11/Scrapyard | Entered Materials 277 | -10/Materials | Discovered new exit (range 8) 310 | -10/Materials | Build established: Mutant 381 | -10/Materials | Entered Mines 512 | -10/Mines | Assisted by bots powering up and referring to "LRC-V3" 864 | -10/Mines | Build established: Scavenger-Mutant 909 | -10/Mines | Discovered new exit (range 13) 968 | -10/Mines | Identified exit to Materials 1129 | -10/Mines | Learned location of 1 exit from Materials 1203 | -10/Mines | Deemed a non-threat by the Exiles lab entrance 1203 | -10/Mines | Discovered new exit (range 5) 1212 | -10/Mines | Entered Exiles 1212 | -10/Exiles | Found Exiles lab abandoned 1212 | -10/Exiles | Accompanied by 2 allies 1716 | -10/Exiles | Discovered new exit (range 14) 1732 | -10/Exiles | Entered Mines 1732 | -9/Mines | Accompanied by 2 allies 1736 | -9/Mines | Learned location of Storage (-8) 1901 | -9/Mines | Found a hidden stash of uninstalled traps 1926 | -9/Mines | Received a Rocket Launcher from a helpful Derelict 1937 | -9/Mines | Assembled infested the area 1942 | -9/Mines | Assisted by a Guerilla fighting off Assembled 1966 | -9/Mines | Crushed by falling debris 1966 | -9/Mines | Core integrity fell below 50% 2003 | -9/Mines | Core integrity fell below 20% 2004 | -9/Mines | Destroyed by D-53 Grenadier with Mini Grenade Launcher Last Messages --------------- 01960_ System corrupted by crushing effect (+2). 01960_ Knocked back. 01962_ as-22378 destroyed. 01964_ as-78568 destroyed. 01966_ The unstable cave ceiling collapses. 01966_ Crushed by falling debris. 01966_ Imp. Heat Sink destroyed. 01966_ System corrupted by crushing effect (+4). 01976_ The unstable cave ceiling collapses. 01979_ System corrupted: IFF burst signal emitted. 01981_ as-80604 destroyed. 01982_ The unstable cave ceiling collapses. 02000_ K-01 Serf collects debris. 02001_ Destroyed Tractor Beam. 02001_ R-06 Scavenger destroyed. 02001_ Rocket Launcher destroyed. 02002_ System corrupted: Energy discharge (-51). 02002_ Mak. Leg destroyed. 02003_ Carbon-fiber Leg destroyed. Map ----- +----------------------------------------------------+ | ## ### #?????# """ #?? | | ## % ##????# """ #?? | | #### % [ ###??## """ ###########?? | | ##??##### ##??# #???????????? | | ????????#### #### ##???????????? | | ???????????### = ## ##????????????? | | ?????????????## [% %! ##?????????????? | | #?????????????## [ ###??????????????? | | #??##???###????# ##????????????????? | | ## #?????????????????? | | #?????####### ## # #?????????????????? | | ####??###??????## #### ## #?????????????????? | | ###?### ######??#####??# ## #?????????????????? | | ### #?????????# ## #?????????????????? | | #### ##???????# # ?????????????????? | | # #??????# # ?????????????????? | | #### #??????# #####????????????????? | | ##?# #??????# !!#????????????????????? | | #??## ## ##??????# =%!#????????????????????? | | #???# ##???????## /=* ????????????????????? | | ##???### ##????????## [##????????????????????? | | ???????## ##??????#### ##???????????????????? | | ????????## ##????## #???????????????????? | | ?????????## ##???# #???????????????????? | | ??????????## ###?## #???????????????????? | | ??????????## ### @ #???????????????????? | | ??????????# # #???????????????????? | | ??????????# #???????????????????? | | ??????????# ## < #???????????????????? | | ??????????## ####### #???????????????????? | | ???????????####?????# # dd #???????????????????? | | ????????????????????### % ???????????????????? | | ??????????????????????? k ??????????????????? | | ??????????????????????? % ##?????????????????? | | ??????????????????????# # #??????????????????? | | ??????????????????????## ##??????????????????? | | ???????????????????????# ????????????????????? | | ??????????????????????? %# #???????????????????? | | ??????????????????????? ? ???????????????????? | | ??????????????????????? ? ???????????????????? | | ??????????????????????? ??????????????????????? | | ?????????????????????????????????????????????????? | | ?????????????????????????????????????????????????? | | ?????????????????????????????????????????????????? | | ?????????????????????????????????????????????????? | | ?????????????????????????????????????????????????? | | ?????????????????????????????????????????????????? | | ?????????????????????????????????????????????????? | | ?????????????????????????????????????????????????? | | ?????????????????????????????????????????????????? | +----------------------------------------------------+ Best States ------------- Heat Dissipation 39 Energy Generation 18 Energy Capacity 250 Matter Stores 300 Matter Capacity 300 Sight Range 16 Terrain Scan Density 10 Armor Coverage 150 Evasion (%) 55 Recoil Reduction 2 Item Schematics ----------------- Cargo Storage Unit | -10/Materials | Hacked Robot Schematics ------------------ None Fabricated ------------ Nothing Alien Tech Used ----------------- None Achievements -------------- None Challenges ------------ None Game ------ Seed ControlCentriumGun Manual? 0 Play Time 00:11:58 Cumulative 119.5 hours Start 2024.06.11 @ 13:29:25 End 2024.06.11 @ 13:40:22 Sessions 1 Manual Loads 0 Difficulty Rogue Special Mode None Game No. 160 Rogue 160 Adventurer 0 Explorer 0 Win Type - Total 1 Types 1/0/0/0/0/0/0/0/0 Lore% 49 Gallery% 53 Achievement% 50 Wizard Run 0 Options --------- Layout 1 ASCII 0 Keyboard 0 Movement Mouse Keybinds 0 Fullscreen 1 Font 32/SmallcapsGlow Map View 50x35 Zoom Use 0% Tactical HUD 1 Map Filters NONE Filters NONE Steam 1 RUN: a97f4f54-85d0-4b06-a437-8ebafc957bf5